[Event "22nd ETCC Women 2019"]
[Site "Batumi"]
[Date "2019.10.26"]
[Round "3.18"]
[White "Olsarova, Karolina"]
[Black "Frisk, Ellinor"]
[Result "1/2-1/2"]
[ECO "B32"]
[WhiteElo "2294"]
[BlackElo "2227"]
[Annotator "NA"]
[PlyCount "114"]
[EventDate "2019.10.24"]
[EventType "team-tourn"]
[EventCountry "GEO"]
[SourceTitle "playchess.com"]
[Source "ChessBase"]
[SourceQuality "1"]
[WhiteTeam "Czech Republic"]
[BlackTeam "Sweden"]
[WhiteTeamCountry "CZE"]
[BlackTeamCountry "SWE"]
[TimeControl "40/5400+30:1800+30"]

1. e4 {[%emt 0:00:00]} c5 {[%emt 0:00:00]} 2. Nf3 {[%emt 0:00:00]} Nc6 {[%emt 0:00:00]} 3. d4 {[%emt 0:00:00]} cxd4 {[%emt 0:00:00]} 4. Nxd4 {[%emt 0:00:00]} e5 {[%emt 0:00:00]} 5. Nb5 {[%emt 0:00:20]} d6 {[%emt 0:00:00]} 6. N5c3 {[%emt 0:02:35]} f5 {[%emt 0:02:20]} 7. Bc4 {[%emt 0:04:19]} Nf6 {[%emt 0:03:05]} 8. Bg5 {[%emt 0:03:16]} Be7 {[%emt 0:05:02]} 9. O-O {[%emt 0:13:23]} Nxe4 {[%emt 0:25:39]} 10. Nxe4 {[%emt 0:00:08]} fxe4 {[%emt 0:09:46]} 11. Bxe7 {[%emt 0:00:24]} Qxe7 {[%emt 0:01:22]} 12. Nc3 {[%emt 0:01:53]} Be6 {[%emt 0:00:32]} 13. Nxe4 {[%emt 0:09:21]} O-O-O {[%emt 0:01:24]} 14. Bxe6+ {[%emt 0:12:39]} Qxe6 {[%emt 0:00:02]} 15. c4 {[%emt 0:00:09]} Nd4 {[%emt 0:01:21]} 16. Qd3 {[%emt 0:10:07]} Qg6 {[%emt 0:01:50]} 17. Rad1 {[%emt 0:09:49]} Rhf8 {[%emt 0:00:21]} 18. Nc3 {[%emt 0:01:26]} Qxd3 {[%emt 0:05:23]} 19. Rxd3 {[%emt 0:00:02]} Kd7 {[%emt 0:00:16]} 20. Re1 {[%emt 0:06:55]} Rb8 {[%emt 0:09:35]} 21. Ne2 {[%emt 0:09:05]} Nxe2+ {[%emt 0:11:12]} 22. Rxe2 {[%emt 0:00:02]} Rbc8 {[%emt 0:00:10]} 23. b3 {[%emt 0:02:36]} Rc5 {[%emt 0:03:50]} 24. Red2 {[%emt 0:02:10]} Rf6 {[%emt 0:00:06]} 25. a4 {[%emt 0:01:28]} a6 {[%emt 0:01:37]} 26. Rd5 {[%emt 0:05:25]} Kc6 {[%emt 0:01:27]} 27. Kf1 {[%emt 0:01:07]} b5 {[%emt 0:07:09]} 28. Rxc5+ {[%emt 0:03:33]} dxc5 {[%emt 0:00:17]} 29. axb5+ {[%emt 0:00:46]} axb5 {[%emt 0:00:11]} 30. cxb5+ {[%emt 0:00:55]} Kxb5 {[%emt 0:00:06]} 31. Rd7 {[%emt 0:00:50]} Rg6 {[%emt 0:02:33]} 32. Rd5 {[%emt 0:00:27]} Re6 {[%emt 0:00:56]} 33. Ke2 {[%emt 0:00:19]} Kb4 {[%emt 0:01:18]} 34. Ke3 {[%emt 0:00:32]} Rc6 {[%emt 0:02:47]} 35. Rd3 {[%emt 0:00:27]} Rg6 {[%emt 0:01:04]} 36. g3 {[%emt 0:00:30]} Rf6 {[%emt 0:00:54]} 37. f3 {[%emt 0:00:49]} Ra6 {[%emt 0:01:26]} 38. Ke4 {[%emt 0:00:22]} Ra2 {[%emt 0:00:08]} 39. Kxe5 {[%emt 0:00:45]} Rxh2 {[%emt 0:00:07]} 40. Rd7 {[%emt 0:00:00]} Kxb3 {[%emt 0:00:00]} 41. Rxg7 {[%emt 0:03:14]} c4 {[%emt 0:06:58]} 42. Rb7+ {[%emt 0:04:11]} Kc2 {[%emt 0:04:13]} 43. f4 {[%emt 0:00:40]} c3 {[%emt 0:00:56]} 44. f5 {[%emt 0:00:43]} Kd2 {[%emt 0:03:46]} 45. Rd7+ {[%emt 0:01:34]} Ke3 {[%emt 0:01:32]} 46. Rc7 {[%emt 0:01:50]} c2 {[%emt 0:00:14]} 47. f6 {[%emt 0:00:53]} Rf2 {[%emt 0:03:22]} 48. Ke6 {[%emt 0:03:28]} Kd2 {[%emt 0:00:17]} 49. Rd7+ {[%emt 0:03:01]} Ke3 {[%emt 0:00:59]} 50. Rc7 {[%emt 0:00:18]} Kd2 {[%emt 0:00:14]} 51. f7 {[%emt 0:06:48]} c1=Q {[%emt 0:00:49]} 52. Rxc1 {[%emt 0:00:08]} Kxc1 {[%emt 0:00:08]} 53. Ke7 {[%emt 0:00:06]} Kd2 {[%emt 0:00:21]} 54. f8=Q {[%emt 0:00:40]} Rxf8 {[%emt 0:00:03]} 55. Kxf8 {[%emt 0:00:05]} Ke3 {[%emt 0:00:35]} 56. Kg7 {[%emt 0:00:05]} Kf3 {[%emt 0:00:12]} 57. Kxh7 {[%emt 0:00:04]} Kxg3 {[%emt 0:00:04]} 1/2-1/2

[Event "22nd ETCC Women 2019"]
[Site "Batumi"]
[Date "2019.10.26"]
[Round "3.19"]
[White "Movsesian, Julia"]
[Black "Gevorgyan, Maria"]
[Result "1/2-1/2"]
[ECO "C50"]
[WhiteElo "2307"]
[BlackElo "2260"]
[Annotator "NA"]
[PlyCount "77"]
[EventDate "2019.10.24"]
[EventType "team-tourn"]
[EventCountry "GEO"]
[SourceTitle "playchess.com"]
[Source "ChessBase"]
[SourceQuality "1"]
[WhiteTeam "Slovakia"]
[BlackTeam "Armenia"]
[WhiteTeamCountry "SVK"]
[BlackTeamCountry "ARM"]
[TimeControl "40/5400+30:1800+30"]

1. e4 {[%emt 0:00:00]} e5 {[%emt 0:00:00]} 2. Nf3 {[%emt 0:00:01]} Nc6 {[%emt 0:00:00]} 3. Bc4 {[%emt 0:04:56]} Nf6 {[%emt 0:00:02]} 4. d3 {[%emt 0:00:06]} Bc5 {[%emt 0:00:17]} 5. c3 {[%emt 0:00:40]} d6 {[%emt 0:00:20]} 6. Nbd2 {[%emt 0:02:08]} a6 {[%emt 0:02:05]} 7. Bb3 {[%emt 0:00:37]} h6 {[%emt 0:01:52]} 8. Nc4 {[%emt 0:06:19]} Ba7 {[%emt 0:07:13]} 9. O-O {[%emt 0:10:44]} O-O {[%emt 0:13:18]} 10. Be3 {[%emt 0:11:00]} b5 {[%emt 0:08:00]} 11. Ncd2 {[%emt 0:03:07]} d5 {[%emt 0:03:04]} 12. Bxa7 {[%emt 0:06:05]} Rxa7 {[%emt 0:00:31]} 13. a4 {[%emt 0:01:44]} Rb7 {[%emt 0:15:09]} 14. axb5 {[%emt 0:01:03]} axb5 {[%emt 0:02:34]} 15. Ra8 {[%emt 0:00:52]} dxe4 {[%emt 0:02:06]} 16. Nxe4 {[%emt 0:02:18]} Qe7 {[%emt 0:01:39]} 17. Re1 {[%emt 0:03:43]} Nd7 {[%emt 0:11:06]} 18. Bd5 {[%emt 0:07:44]} Nb6 {[%emt 0:00:19]} 19. Rxc8 {[%emt 0:01:56]} Nxd5 {[%emt 0:00:04]} 20. Rxf8+ {[%emt 0:00:13]} Qxf8 {[%emt 0:01:50]} 21. Ng3 {[%emt 0:04:14]} f6 {[%emt 0:04:11]} 22. d4 {[%emt 0:03:36]} exd4 {[%emt 0:00:39]} 23. Nxd4 {[%emt 0:00:43]} Nxd4 {[%emt 0:01:12]} 24. Qxd4 {[%emt 0:00:06]} c6 {[%emt 0:00:03]} 25. h4 {[%emt 0:04:52]} Re7 {[%emt 0:01:43]} 26. Ra1 {[%emt 0:03:18]} Qe8 {[%emt 0:00:05]} 27. Kh2 {[%emt 0:06:51]} Qb8 {[%emt 0:04:38]} 28. Kh1 {[%emt 0:01:17]} Qf4 {[%emt 0:07:05]} 29. Qxf4 {[%emt 0:06:23]} Nxf4 {[%emt 0:00:02]} 30. Ra6 {[%emt 0:00:55]} Rc7 {[%emt 0:02:42]} 31. Nf5 {[%emt 0:00:37]} Nd3 {[%emt 0:01:20]} 32. Rxc6 {[%emt 0:00:39]} Rxc6 {[%emt 0:02:01]} 33. Ne7+ {[%emt 0:00:04]} Kf7 {[%emt 0:00:12]} 34. Nxc6 {[%emt 0:00:04]} Nxb2 {[%emt 0:00:02]} 35. Nd4 {[%emt 0:01:12]} Nd1 {[%emt 0:00:08]} 36. Nxb5 {[%emt 0:00:40]} Nxf2+ {[%emt 0:00:04]} 37. Kg1 {[%emt 0:00:36]} Ne4 {[%emt 0:04:39]} 38. Kf1 {[%emt 0:00:52]} Ke6 {[%emt 0:00:29]} 39. Ke2 {[%emt 0:00:34]} 1/2-1/2

[Event "22nd ETCC Women 2019"]
[Site "Batumi"]
[Date "2019.10.26"]
[Round "3.19"]
[White "Bengtsson, Siv"]
[Black "Petrova, Kristyna"]
[Result "1/2-1/2"]
[ECO "B80"]
[WhiteElo "2086"]
[BlackElo "2259"]
[Annotator "NA"]
[PlyCount "106"]
[EventDate "2019.10.24"]
[EventType "team-tourn"]
[EventCountry "GEO"]
[SourceTitle "playchess.com"]
[Source "ChessBase"]
[SourceQuality "1"]
[WhiteTeam "Sweden"]
[BlackTeam "Czech Republic"]
[WhiteTeamCountry "SWE"]
[BlackTeamCountry "CZE"]
[TimeControl "40/5400+30:1800+30"]

1. e4 {[%emt 0:00:00]} c5 {[%emt 0:00:00]} 2. Nf3 {[%emt 0:00:00]} d6 {[%emt 0:00:00]} 3. d4 {[%emt 0:00:00]} cxd4 {[%emt 0:00:00]} 4. Nxd4 {[%emt 0:00:00]} Nf6 {[%emt 0:00:00]} 5. Nc3 {[%emt 0:00:00]} a6 {[%emt 0:00:00]} 6. Be3 {[%emt 0:01:37]} e6 {[%emt 0:00:11]} 7. Qd2 {[%emt 0:04:50]} Be7 {[%emt 0:01:45]} 8. f3 {[%emt 0:03:36]} Nc6 {[%emt 0:04:48]} 9. O-O-O {[%emt 0:03:08]} Qc7 {[%emt 0:02:59]} 10. Kb1 {[%emt 0:06:43]} O-O {[%emt 0:14:16]} 11. g4 {[%emt 0:03:39]} b5 {[%emt 0:08:53]} 12. Nxc6 {[%emt 0:05:14]} Qxc6 {[%emt 0:00:05]} 13. Ne2 {[%emt 0:00:06]} Bb7 {[%emt 0:06:53]} 14. g5 {[%emt 0:09:29]} Nd7 {[%emt 0:00:17]} 15. Nd4 {[%emt 0:00:23]} Qc7 {[%emt 0:00:28]} 16. h4 {[%emt 0:05:37]} Rfd8 {[%emt 0:11:16]} 17. g6 {[%emt 0:22:48]} hxg6 {[%emt 0:22:34]} 18. h5 {[%emt 0:00:07]} gxh5 {[%emt 0:00:59]} 19. Rxh5 {[%emt 0:03:06]} Bf6 {[%emt 0:02:03]} 20. Bg5 {[%emt 0:10:58]} Kf8 {[%emt 0:02:10]} 21. Rh8+ {[%emt 0:04:07]} Ke7 {[%emt 0:00:04]} 22. Rxd8 {[%emt 0:00:05]} Rxd8 {[%emt 0:01:28]} 23. Bxf6+ {[%emt 0:00:58]} Nxf6 {[%emt 0:03:24]} 24. Qg5 {[%emt 0:02:01]} Qc5 {[%emt 0:01:56]} 25. Qxg7 {[%emt 0:03:38]} Rg8 {[%emt 0:00:55]} 26. Qh6 {[%emt 0:00:05]} Rg1 {[%emt 0:05:41]} 27. Qd2 {[%emt 0:01:11]} Nd7 {[%emt 0:02:09]} 28. Qf2 {[%emt 0:01:22]} Rg7 {[%emt 0:01:05]} 29. Qh4+ {[%emt 0:01:38]} Qg5 {[%emt 0:00:23]} 30. Qf2 {[%emt 0:01:00]} Nc5 {[%emt 0:02:07]} 31. Nb3 {[%emt 0:01:25]} Nxb3 {[%emt 0:03:51]} 32. axb3 {[%emt 0:00:03]} Qc5 {[%emt 0:00:04]} 33. Qh4+ {[%emt 0:00:23]} Qg5 {[%emt 0:00:05]} 34. Qf2 {[%emt 0:00:16]} Qc5 {[%emt 0:00:10]} 35. Qh4+ {[%emt 0:00:00]} Kd7 {[%emt 0:03:22]} 36. Qf6 {[%emt 0:03:11]} Qg5 {[%emt 0:00:51]} 37. Qd4 {[%emt 0:00:18]} d5 {[%emt 0:00:42]} 38. Qb6 {[%emt 0:03:06]} Kc8 {[%emt 0:00:27]} 39. exd5 {[%emt 0:00:00]} exd5 {[%emt 0:00:00]} 40. Qd6 {[%emt 0:00:00]} f5 {[%emt 0:00:00]} 41. Rd3 {[%emt 0:18:24]} Rc7 {[%emt 0:02:53]} 42. Qf8+ {[%emt 0:00:47]} Qd8 {[%emt 0:03:33]} 43. Qxf5+ {[%emt 0:00:12]} Kb8 {[%emt 0:00:02]} 44. Re3 {[%emt 0:02:53]} d4 {[%emt 0:05:22]} 45. Re5 {[%emt 0:01:36]} Rg7 {[%emt 0:02:06]} 46. Re1 {[%emt 0:02:27]} Rg1 {[%emt 0:08:54]} 47. Qe5+ {[%emt 0:00:25]} Ka8 {[%emt 0:01:11]} 48. Bd3 {[%emt 0:02:13]} Rxe1+ {[%emt 0:00:51]} 49. Qxe1 {[%emt 0:00:04]} Bxf3 {[%emt 0:00:25]} 50. Be4+ {[%emt 0:00:07]} Bxe4 {[%emt 0:00:04]} 51. Qxe4+ {[%emt 0:00:11]} Ka7 {[%emt 0:01:03]} 52. Qc6 {[%emt 0:02:34]} d3 {[%emt 0:01:57]} 53. cxd3 {[%emt 0:02:24]} Qxd3+ {[%emt 0:00:10]} 1/2-1/2

[Event "22nd ETCC Women 2019"]
[Site "Batumi"]
[Date "2019.10.26"]
[Round "3.20"]
[White "Sargsyan, Anna M."]
[Black "Cibickova, Zuzana"]
[Result "1-0"]
[ECO "D78"]
[WhiteElo "2242"]
[BlackElo "2258"]
[Annotator "NA"]
[PlyCount "59"]
[EventDate "2019.10.24"]
[EventType "team-tourn"]
[EventCountry "GEO"]
[SourceTitle "playchess.com"]
[Source "ChessBase"]
[SourceQuality "1"]
[WhiteTeam "Armenia"]
[BlackTeam "Slovakia"]
[WhiteTeamCountry "ARM"]
[BlackTeamCountry "SVK"]
[TimeControl "40/5400+30:1800+30"]

1. d4 {[%emt 0:00:00]} Nf6 {[%emt 0:00:00]} 2. c4 {[%emt 0:00:16]} g6 {[%emt 0:00:00]} 3. g3 {[%emt 0:00:18]} c6 {[%emt 0:00:14]} 4. Bg2 {[%emt 0:00:37]} d5 {[%emt 0:00:05]} 5. Nf3 {[%emt 0:00:21]} Bg7 {[%emt 0:00:42]} 6. O-O {[%emt 0:00:09]} O-O {[%emt 0:02:58]} 7. Qb3 {[%emt 0:00:25]} a5 {[%emt 0:01:21]} 8. cxd5 {[%emt 0:01:22]} a4 {[%emt 0:00:47]} 9. Qd1 {[%emt 0:00:15]} cxd5 {[%emt 0:00:05]} 10. Nc3 {[%emt 0:00:09]} Ne4 {[%emt 0:08:21]} 11. Nxa4 {[%emt 0:13:44]} Qa5 {[%emt 0:00:41]} 12. b3 {[%emt 0:02:37]} b5 {[%emt 0:00:10]} 13. Nb2 {[%emt 0:00:13]} Qc3 {[%emt 0:06:17]} 14. e3 {[%emt 0:05:22]} Bb7 {[%emt 0:44:07]} 15. Qd3 {[%emt 0:09:55]} Rc8 {[%emt 0:02:18]} 16. Qxb5 {[%emt 0:15:34]} Ra7 {[%emt 0:18:44]} 17. Ne5 {[%emt 0:24:32]} Bxe5 {[%emt 0:05:03]} 18. Bxe4 {[%emt 0:03:13]} Bf6 {[%emt 0:02:32]} 19. Qb6 {[%emt 0:05:28]} dxe4 {[%emt 0:00:20]} 20. Qxa7 {[%emt 0:00:06]} Ba6 {[%emt 0:00:07]} 21. Rd1 {[%emt 0:02:47]} Be2 {[%emt 0:00:09]} 22. Bd2 {[%emt 0:02:13]} Qc6 {[%emt 0:04:05]} 23. Rdc1 {[%emt 0:00:22]} Qe6 {[%emt 0:00:10]} 24. Rxc8+ {[%emt 0:05:55]} Qxc8 {[%emt 0:00:01]} 25. Qa8 {[%emt 0:01:04]} Bf3 {[%emt 0:01:50]} 26. Nd3 {[%emt 0:00:20]} Kg7 {[%emt 0:01:01]} 27. Ne1 {[%emt 0:00:44]} h5 {[%emt 0:00:44]} 28. Rc1 {[%emt 0:00:19]} Qd8 {[%emt 0:00:35]} 29. Nxf3 {[%emt 0:00:08]} exf3 {[%emt 0:00:05]} 30. Qxf3 {[%emt 0:00:06]} 1-0

[Event "22nd ETCC Women 2019"]
[Site "Batumi"]
[Date "2019.10.26"]
[Round "3.20"]
[White "Miturova, Magdalena"]
[Black "Borisova, Borislava"]
[Result "1-0"]
[ECO "C16"]
[WhiteElo "2179"]
[BlackElo "1919"]
[Annotator "NA"]
[PlyCount "81"]
[EventDate "2019.10.24"]
[EventType "team-tourn"]
[EventCountry "GEO"]
[SourceTitle "playchess.com"]
[Source "ChessBase"]
[SourceQuality "1"]
[WhiteTeam "Czech Republic"]
[BlackTeam "Sweden"]
[WhiteTeamCountry "CZE"]
[BlackTeamCountry "SWE"]
[TimeControl "40/5400+30:1800+30"]

1. e4 {[%emt 0:00:00]} e6 {[%emt 0:00:00]} 2. d4 {[%emt 0:00:00]} d5 {[%emt 0:00:00]} 3. Nc3 {[%emt 0:00:00]} Bb4 {[%emt 0:00:23]} 4. e5 {[%emt 0:00:10]} b6 {[%emt 0:00:29]} 5. a3 {[%emt 0:00:32]} Bf8 {[%emt 0:00:09]} 6. Nf3 {[%emt 0:01:19]} Ne7 {[%emt 0:04:03]} 7. b4 {[%emt 0:05:58]} a5 {[%emt 0:11:03]} 8. b5 {[%emt 0:06:28]} Nf5 {[%emt 0:07:38]} 9. Bg5 {[%emt 0:05:34]} Be7 {[%emt 0:06:33]} 10. h4 {[%emt 0:05:46]} h6 {[%emt 0:03:07]} 11. Bxe7 {[%emt 0:00:24]} Nxe7 {[%emt 0:00:39]} 12. Bd3 {[%emt 0:08:25]} Bb7 {[%emt 0:00:48]} 13. Rh3 {[%emt 0:08:27]} Nd7 {[%emt 0:00:35]} 14. Rg3 {[%emt 0:02:39]} g6 {[%emt 0:05:13]} 15. h5 {[%emt 0:04:04]} g5 {[%emt 0:06:05]} 16. Nh2 {[%emt 0:22:51]} Nf5 {[%emt 0:07:55]} 17. Bxf5 {[%emt 0:00:34]} exf5 {[%emt 0:00:07]} 18. Qf3 {[%emt 0:06:44]} f4 {[%emt 0:00:24]} 19. Rh3 {[%emt 0:00:09]} Nf8 {[%emt 0:01:23]} 20. Ng4 {[%emt 0:00:26]} Ne6 {[%emt 0:02:21]} 21. Rd1 {[%emt 0:03:38]} Kf8 {[%emt 0:06:25]} 22. Nf6 {[%emt 0:00:41]} Rb8 {[%emt 0:02:06]} 23. Kf1 {[%emt 0:03:47]} c6 {[%emt 0:07:45]} 24. bxc6 {[%emt 0:03:03]} Bxc6 {[%emt 0:00:06]} 25. a4 {[%emt 0:02:59]} Nc7 {[%emt 0:03:49]} 26. Kg1 {[%emt 0:01:46]} Kg7 {[%emt 0:07:22]} 27. Re1 {[%emt 0:03:11]} b5 {[%emt 0:07:10]} 28. axb5 {[%emt 0:00:09]} Nxb5 {[%emt 0:00:15]} 29. Nxb5 {[%emt 0:00:28]} Bxb5 {[%emt 0:03:38]} 30. g3 {[%emt 0:01:46]} fxg3 {[%emt 0:01:55]} 31. Rxg3 {[%emt 0:00:05]} Bc4 {[%emt 0:01:42]} 32. Qf5 {[%emt 0:00:48]} Rb6 {[%emt 0:01:35]} 33. Nd7 {[%emt 0:01:33]} Re6 {[%emt 0:00:36]} 34. Nc5 {[%emt 0:00:05]} Rhe8 {[%emt 0:01:32]} 35. Nxe6+ {[%emt 0:01:00]} Rxe6 {[%emt 0:00:18]} 36. Rb1 {[%emt 0:00:22]} Qc7 {[%emt 0:01:03]} 37. f4 {[%emt 0:00:59]} Qa7 {[%emt 0:00:32]} 38. c3 {[%emt 0:00:21]} a4 {[%emt 0:01:15]} 39. fxg5 {[%emt 0:00:31]} Qe7 {[%emt 0:00:46]} 40. gxh6+ {[%emt 0:00:00]} Kh8 {[%emt 0:00:00]} 41. Rb8+ 1-0

[Event "22nd ETCC Women 2019"]
[Site "Batumi"]
[Date "2019.10.26"]
[Round "3.21"]
[White "Ushenina, Anna"]
[Black "Peng, Zhaoqin"]
[Result "1/2-1/2"]
[ECO "A46"]
[WhiteElo "2431"]
[BlackElo "2364"]
[Annotator "NA"]
[PlyCount "67"]
[EventDate "2019.10.24"]
[EventType "team-tourn"]
[EventCountry "GEO"]
[SourceTitle "playchess.com"]
[Source "ChessBase"]
[SourceQuality "1"]
[WhiteTeam "Ukraine"]
[BlackTeam "Netherlands"]
[WhiteTeamCountry "UKR"]
[BlackTeamCountry "NED"]
[TimeControl "40/5400+30:1800+30"]

1. d4 {[%emt 0:00:00]} Nf6 {[%emt 0:00:00]} 2. Nf3 {[%emt 0:00:28]} e6 {[%emt 0:00:00]} 3. g3 {[%emt 0:00:39]} b5 {[%emt 0:01:05]} 4. e3 {[%emt 0:00:44]} a6 {[%emt 0:01:47]} 5. a4 {[%emt 0:00:12]} b4 {[%emt 0:00:10]} 6. Bg2 {[%emt 0:01:13]} d5 {[%emt 0:06:41]} 7. c4 {[%emt 0:00:45]} bxc3 {[%emt 0:01:36]} 8. bxc3 {[%emt 0:00:48]} a5 {[%emt 0:07:27]} 9. Ne5 {[%emt 0:19:28]} Ba6 {[%emt 0:01:48]} 10. c4 {[%emt 0:09:11]} Bd6 {[%emt 0:05:39]} 11. Nc3 {[%emt 0:14:30]} c6 {[%emt 0:18:54]} 12. f4 {[%emt 0:02:46]} Bb4 {[%emt 0:04:22]} 13. Bd2 {[%emt 0:00:49]} O-O {[%emt 0:00:29]} 14. Rc1 {[%emt 0:17:37]} Nfd7 {[%emt 0:05:44]} 15. cxd5 {[%emt 0:01:01]} cxd5 {[%emt 0:02:30]} 16. Nb5 {[%emt 0:04:08]} Nxe5 {[%emt 0:02:52]} 17. fxe5 {[%emt 0:04:27]} Qb6 {[%emt 0:05:59]} 18. Nc7 {[%emt 0:03:10]} Ra7 {[%emt 0:00:42]} 19. Nxa6 {[%emt 0:00:22]} Nxa6 {[%emt 0:00:15]} 20. O-O {[%emt 0:01:40]} Rc7 {[%emt 0:01:56]} 21. Qb3 {[%emt 0:00:22]} Rfc8 {[%emt 0:02:32]} 22. Rfd1 {[%emt 0:00:45]} Rxc1 {[%emt 0:01:00]} 23. Rxc1 {[%emt 0:00:17]} Rxc1+ {[%emt 0:00:16]} 24. Bxc1 {[%emt 0:00:01]} Qc6 {[%emt 0:07:59]} 25. Bb2 {[%emt 0:00:12]} Bf8 {[%emt 0:04:42]} 26. Bf1 {[%emt 0:11:38]} Nb4 {[%emt 0:00:12]} 27. Bb5 {[%emt 0:00:42]} Qc7 {[%emt 0:00:42]} 28. Qc3 {[%emt 0:00:31]} Qd8 {[%emt 0:03:11]} 29. Qd2 {[%emt 0:04:51]} h5 {[%emt 0:01:32]} 30. Qf2 {[%emt 0:00:45]} Be7 {[%emt 0:02:06]} 31. h4 {[%emt 0:00:38]} g6 {[%emt 0:02:25]} 32. Bc3 {[%emt 0:00:10]} Qc8 {[%emt 0:01:32]} 33. Qd2 {[%emt 0:00:47]} Qc7 {[%emt 0:01:32]} 34. Kg2 {[%emt 0:00:14]} 1/2-1/2

[Event "22nd ETCC Women 2019"]
[Site "Batumi"]
[Date "2019.10.26"]
[Round "3.21"]
[White "Goossens, Hanne"]
[Black "Georgescu, Lena"]
[Result "1/2-1/2"]
[ECO "C50"]
[WhiteElo "2156"]
[BlackElo "2271"]
[Annotator "NA"]
[PlyCount "90"]
[EventDate "2019.10.24"]
[EventType "team-tourn"]
[EventCountry "GEO"]
[SourceTitle "playchess.com"]
[Source "ChessBase"]
[SourceQuality "1"]
[WhiteTeam "Belgium"]
[BlackTeam "Switzerland"]
[WhiteTeamCountry "BEL"]
[BlackTeamCountry "SUI"]
[TimeControl "40/5400+30:1800+30"]

1. e4 {[%emt 0:00:00]} e5 {[%emt 0:00:00]} 2. Nf3 {[%emt 0:00:00]} Nc6 {[%emt 0:00:00]} 3. Bc4 {[%emt 0:00:00]} Bc5 {[%emt 0:00:00]} 4. O-O {[%emt 0:00:35]} Nf6 {[%emt 0:00:00]} 5. d3 {[%emt 0:00:14]} O-O {[%emt 0:01:33]} 6. Bb3 {[%emt 0:02:10]} d6 {[%emt 0:00:35]} 7. c3 {[%emt 0:00:26]} a5 {[%emt 0:00:12]} 8. a4 {[%emt 0:02:54]} h6 {[%emt 0:03:02]} 9. h3 {[%emt 0:00:59]} Be6 {[%emt 0:01:34]} 10. Nbd2 {[%emt 0:02:35]} Re8 {[%emt 0:09:25]} 11. Bxe6 {[%emt 0:08:14]} Rxe6 {[%emt 0:00:22]} 12. Re1 {[%emt 0:02:47]} d5 {[%emt 0:06:26]} 13. exd5 {[%emt 0:13:11]} Qxd5 {[%emt 0:00:43]} 14. Ne4 {[%emt 0:04:57]} Ba7 {[%emt 0:06:27]} 15. Nxf6+ {[%emt 0:02:38]} Rxf6 {[%emt 0:00:19]} 16. Be3 {[%emt 0:01:40]} Bxe3 {[%emt 0:03:26]} 17. Rxe3 {[%emt 0:00:07]} Rd8 {[%emt 0:01:33]} 18. Qe2 {[%emt 0:07:26]} g6 {[%emt 0:01:27]} 19. Re1 {[%emt 0:05:25]} b6 {[%emt 0:03:49]} 20. Nxe5 {[%emt 0:07:46]} Nxe5 {[%emt 0:00:15]} 21. Rxe5 {[%emt 0:00:05]} Qxd3 {[%emt 0:00:27]} 22. Re8+ {[%emt 0:03:15]} Kg7 {[%emt 0:02:39]} 23. Rxd8 {[%emt 0:03:57]} Qxd8 {[%emt 0:00:10]} 24. Rd1 {[%emt 0:00:38]} Rd6 {[%emt 0:04:08]} 25. Rxd6 {[%emt 0:01:34]} Qxd6 {[%emt 0:00:06]} 26. b3 {[%emt 0:01:40]} Qd5 {[%emt 0:01:58]} 27. Qc2 {[%emt 0:01:04]} h5 {[%emt 0:01:54]} 28. h4 {[%emt 0:01:19]} Kf6 {[%emt 0:01:21]} 29. g3 {[%emt 0:02:24]} Ke5 {[%emt 0:02:13]} 30. Qe2+ {[%emt 0:02:43]} Kd6 {[%emt 0:02:50]} 31. Qb2 {[%emt 0:03:31]} Qd3 {[%emt 0:05:27]} 32. c4 {[%emt 0:00:57]} Ke6 {[%emt 0:06:55]} 33. Kg2 {[%emt 0:01:14]} Qe4+ {[%emt 0:02:48]} 34. Kf1 {[%emt 0:09:30]} f6 {[%emt 0:07:38]} 35. Qc3 {[%emt 0:01:12]} c5 {[%emt 0:16:31]} 36. Kg1 {[%emt 0:01:53]} Kf5 {[%emt 0:01:40]} 37. Kf1 {[%emt 0:01:04]} Qh1+ {[%emt 0:04:14]} 38. Ke2 {[%emt 0:00:09]} Qe4+ {[%emt 0:00:03]} 39. Kf1 {[%emt 0:00:14]} g5 {[%emt 0:01:51]} 40. hxg5 {[%emt 0:00:00]} fxg5 {[%emt 0:00:00]} 41. Qd2 {[%emt 0:03:39]} Qh1+ {[%emt 0:23:04]} 42. Ke2 {[%emt 0:00:17]} Qe4+ {[%emt 0:00:04]} 43. Kf1 {[%emt 0:00:31]} Qh1+ {[%emt 0:00:19]} 44. Ke2 {[%emt 0:00:06]} Qe4+ {[%emt 0:00:09]} 45. Kf1 Ke5 1/2-1/2

[Event "22nd ETCC Women 2019"]
[Site "Batumi"]
[Date "2019.10.26"]
[Round "3.22"]
[White "Haast, Anne"]
[Black "Gaponenko, Inna"]
[Result "1/2-1/2"]
[ECO "B33"]
[WhiteElo "2288"]
[BlackElo "2427"]
[Annotator "NA"]
[PlyCount "40"]
[EventDate "2019.10.24"]
[EventType "team-tourn"]
[EventCountry "GEO"]
[SourceTitle "playchess.com"]
[Source "ChessBase"]
[SourceQuality "1"]
[WhiteTeam "Netherlands"]
[BlackTeam "Ukraine"]
[WhiteTeamCountry "NED"]
[BlackTeamCountry "UKR"]
[TimeControl "40/5400+30:1800+30"]

1. e4 {[%emt 0:00:00]} c5 {[%emt 0:00:00]} 2. Nf3 {[%emt 0:00:00]} Nc6 {[%emt 0:00:00]} 3. d4 {[%emt 0:00:05]} cxd4 {[%emt 0:00:00]} 4. Nxd4 {[%emt 0:00:08]} Nf6 {[%emt 0:00:00]} 5. Nc3 {[%emt 0:00:38]} e5 {[%emt 0:00:05]} 6. Ndb5 {[%emt 0:01:04]} d6 {[%emt 0:00:10]} 7. Bg5 {[%emt 0:00:22]} a6 {[%emt 0:00:18]} 8. Na3 {[%emt 0:00:21]} b5 {[%emt 0:00:15]} 9. Nd5 {[%emt 0:00:35]} Be7 {[%emt 0:00:13]} 10. Bxf6 {[%emt 0:00:23]} Bxf6 {[%emt 0:00:06]} 11. c3 {[%emt 0:00:13]} Rb8 {[%emt 0:00:30]} 12. Nc2 {[%emt 0:03:28]} Bg5 {[%emt 0:00:14]} 13. Bd3 {[%emt 0:02:09]} O-O {[%emt 0:19:46]} 14. O-O {[%emt 0:04:12]} a5 {[%emt 0:13:14]} 15. Qe2 {[%emt 0:33:11]} b4 {[%emt 0:00:38]} 16. cxb4 {[%emt 0:02:52]} axb4 {[%emt 0:00:28]} 17. Bb5 {[%emt 0:01:12]} Na7 {[%emt 0:04:57]} 18. Bc4 {[%emt 0:06:48]} Nc6 {[%emt 0:00:48]} 19. Bb5 {[%emt 0:03:34]} Na7 {[%emt 0:00:20]} 20. Bc4 {[%emt 0:00:23]} Nc6 {[%emt 0:00:22]} 1/2-1/2